fUST/lending_fUST_20250910
["ID","MTS","AMOUNT","RATE_DAILY","PERIOD"]
[384523668,1757449869309,-2034.54,0.00016438,2]
[384523669,1757449869319,-480.0,0.00016438,2]
[384523670,1757449869329,-480.0,0.00016438,2]
[384523671,1757449869340,-698.54,0.00016438,2]
[384523672,1757449869351,-811.59,0.00016438,2]
[384523673,1757449869362,-480.0,0.00016438,2]
[384523674,1757449869373,-206.46260471,0.00016438,2]
[384523675,1757449869384,-3020.48,0.00016438,2]
[384523676,1757449869394,-151.0,0.00016438,2]
[384523677,1757449869404,-152.518184,0.00016438,2]
[384523678,1757449869414,-3000.0,0.0001644,2]
[384523679,1757449869425,-3000.0,0.0001645,2]
[384523680,1757449869436,-460.0,0.00016453,2]
[384523681,1757449869446,-3000.0,0.0001646,2]
[384523682,1757449869458,-1500.0,0.00016468,2]
[384523683,1757449869469,-3000.0,0.0001647,2]
[384523684,1757449869479,-3000.0,0.0001648,2]
[384523685,1757449869489,-3000.0,0.0001649,2]
[384523686,1757449869500,-3000.0,0.000165,2]
[384523687,1757449869510,-1000.0,0.000165,2]
[384523688,1757449869520,-3000.0,0.0001651,2]
[384523689,1757449869530,-3000.0,0.0001652,2]
[384523690,1757449869540,-4927.560322,0.0001653,2]
[384523691,1757449869551,-1069.699999,0.000167,2]
[384523692,1757449869561,-1219.89,0.00016706,2]
[384523693,1757449869571,-534.0,0.00016712,2]
[384523694,1757449869582,-500.0,0.00016712,2]
[384523695,1757449869593,-480.0,0.00016712,2]
[384523696,1757449869606,-480.0,0.00016712,2]
[384523697,1757449869617,-480.0,0.00016712,2]
[384523698,1757449869627,-625.34,0.00016712,2]
[384523699,1757449869638,-480.0,0.00016712,2]
[384523700,1757449869649,-580.87,0.00016712,2]
[384523701,1757449869659,-594.72,0.00016712,2]
[384523702,1757449869668,-590.08,0.00016712,2]
[384523703,1757449869678,-480.0,0.00016712,2]
[384523704,1757449869689,-480.0,0.00016712,2]
[384523705,1757449869699,-239.35837626,0.00016712,2]
[384523706,1757449869710,-798.0,0.00016712,2]
[384523707,1757449869721,-480.0,0.00016712,2]
[384523708,1757449869731,-480.0,0.00016712,2]
[384523709,1757449869742,-510.04,0.00016712,2]
[384523710,1757449869752,-480.0,0.00016712,2]
[384523711,1757449869762,-480.0,0.00016712,2]
[384523712,1757449869772,-480.0,0.00016712,2]
[384523713,1757449869782,-1358.13,0.00016712,2]
[384523714,1757449869792,-7610.56,0.00016712,2]
[384523715,1757449869815,-480.0,0.00016712,2]
[384523716,1757449869832,-616.56,0.00016712,2]
[384523717,1757449869852,-480.0,0.00016712,2]
[384523718,1757449869873,-2162.86,0.00016712,2]
[384523719,1757449869893,-719.29,0.00016712,2]
[384523720,1757449869910,-798.23,0.00016712,2]
[384523721,1757449869931,-480.0,0.00016712,2]
[384523722,1757449869946,-480.0,0.00016712,2]
[384523723,1757449869963,-480.0,0.00016712,2]
[384523724,1757449869984,-480.0,0.00016712,2]
[384523725,1757449870003,-1115.6,0.00016712,2]
[384523726,1757449870016,-814.84,0.00016712,2]
[384523727,1757449870037,-480.0,0.00016712,2]
[384523728,1757449870052,-4312.41,0.00016712,2]
[384523729,1757449870070,-2540.43,0.00016712,2]
[384523730,1757449870085,-632.5,0.00016712,2]
[384523731,1757449870100,-2246.2,0.00016712,2]
[384523732,1757449870117,-1859.97,0.00016712,2]
[384523733,1757449870135,-1543.27,0.00016712,2]
[384523734,1757449870151,-2024.29,0.00016712,2]
[384523735,1757449870167,-498.41,0.00016712,2]
[384523736,1757449870181,-598.26,0.00016712,2]
[384523737,1757449870196,-575.75,0.00016712,2]
[384523738,1757449870213,-480.0,0.00016712,2]
[384523739,1757449870227,-17569.48,0.00016712,2]
[384523740,1757449870242,-480.0,0.00016712,2]
[384523741,1757449870257,-557.56,0.00016712,2]
[384523742,1757449870272,-524.24,0.00016712,2]
[384523743,1757449870286,-480.0,0.00016712,2]
[384523744,1757449870302,-882.12,0.00016712,2]
[384523745,1757449870317,-822.5,0.00016712,2]
[384523746,1757449870332,-792.79,0.00016712,2]
[384523747,1757449870347,-493.72,0.00016712,2]
[384523748,1757449870363,-650.02,0.00016712,2]
[384523749,1757449870378,-1561.18,0.00016712,2]
[384523750,1757449870393,-2198.51,0.00016712,2]
[384523751,1757449870409,-595.05,0.00016712,2]
[384523752,1757449870425,-1554.96,0.00016712,2]
[384523753,1757449870441,-480.0,0.00016712,2]
[384523754,1757449870457,-480.0,0.00016712,2]
[384523755,1757449870473,-634.32,0.00016712,2]
[384523756,1757449870489,-480.0,0.00016712,2]
[384523757,1757449870505,-646.8,0.00016712,2]
[384523758,1757449870519,-578.16,0.00016712,2]
[384523759,1757449870535,-528.51,0.00016712,2]
[384523760,1757449870550,-1002.17,0.00016712,2]
[384523761,1757449870567,-480.0,0.00016712,2]
[384523762,1757449870583,-500.0,0.00016712,2]
[384523763,1757449870599,-1772.11,0.00016712,2]
[384523764,1757449870616,-480.0,0.00016712,2]
[384523765,1757449870632,-1022.54,0.00016712,2]
[384523766,1757449870650,-486.87,0.00016712,2]
[384523767,1757449870665,-480.0,0.00016712,2]
[384523768,1757449870681,-2034.54,0.00016712,2]
[384523769,1757449870696,-480.0,0.00016712,2]
[384523770,1757449870711,-480.0,0.00016712,2]
[384523771,1757449870726,-698.54,0.00016712,2]
[384523772,1757449870742,-811.59,0.00016712,2]
[384523773,1757449870757,-480.0,0.00016712,2]
[384523774,1757449870773,-3000.0,0.00016712,2]
[384523775,1757449870788,-3000.0,0.00016712,2]
[384523776,1757449870803,-3000.0,0.0001678,2]
[384523777,1757449870818,-500.0,0.00016818,2]
[384523778,1757449870828,-160.0,0.00016889,6]
[384523779,1757449870961,-864.0,0.00016905,2]
[384523780,1757449870979,-1219.89,0.0001698,2]
[384523781,1757449870989,-534.0,0.00016986,2]
[384523782,1757449870999,-500.0,0.00016986,2]
[384523783,1757449871009,-480.0,0.00016986,2]
[384523784,1757449871019,-480.0,0.00016986,2]
[384523785,1757449871029,-480.0,0.00016986,2]
[384523786,1757449871038,-625.34,0.00016986,2]
[384523787,1757449871048,-480.0,0.00016986,2]
[384523788,1757449871059,-580.87,0.00016986,2]
[384523789,1757449871069,-594.72,0.00016986,2]
[384523790,1757449871079,-590.08,0.00016986,2]
[384523791,1757449871089,-361.21669522,0.00016986,2]
[384523792,1757449871100,-480.0,0.00016986,2]
[384523793,1757449871112,-798.0,0.00016986,2]
[384523794,1757449871122,-480.0,0.00016986,2]
[384523795,1757449871132,-480.0,0.00016986,2]
[384523796,1757449871143,-510.04,0.00016986,2]
[384523797,1757449871153,-480.0,0.00016986,2]
[384523798,1757449871162,-480.0,0.00016986,2]
[384523799,1757449871172,-480.0,0.00016986,2]
[384523800,1757449871182,-1358.13,0.00016986,2]
[384523801,1757449871192,-7610.56,0.00016986,2]
[384523802,1757449871202,-480.0,0.00016986,2]
[384523803,1757449871213,-616.56,0.00016986,2]
[384523804,1757449871223,-480.0,0.00016986,2]
[384523805,1757449871234,-2162.86,0.00016986,2]
[384523806,1757449871244,-719.29,0.00016986,2]
[384523807,1757449871253,-798.23,0.00016986,2]
[384523808,1757449871264,-480.0,0.00016986,2]
[384523809,1757449871274,-480.0,0.00016986,2]
[384523810,1757449871283,-480.0,0.00016986,2]
[384523811,1757449871293,-480.0,0.00016986,2]
[384523812,1757449871303,-1115.6,0.00016986,2]
[384523813,1757449871313,-814.84,0.00016986,2]
[384523814,1757449871323,-4312.41,0.00016986,2]
[384523815,1757449871333,-2540.43,0.00016986,2]
[384523816,1757449871343,-632.5,0.00016986,2]
[384523817,1757449871353,-2246.2,0.00016986,2]
[384523818,1757449871364,-1859.97,0.00016986,2]
[384523819,1757449871375,-1543.27,0.00016986,2]
[384523820,1757449871386,-2024.29,0.00016986,2]
[384523821,1757449871396,-498.41,0.00016986,2]
[384523822,1757449871407,-598.26,0.00016986,2]
[384523823,1757449871417,-575.75,0.00016986,2]
[384523824,1757449871428,-480.0,0.00016986,2]
[384523825,1757449871439,-17569.48,0.00016986,2]
[384523826,1757449871448,-480.0,0.00016986,2]
[384523827,1757449871458,-557.56,0.00016986,2]
[384523828,1757449871468,-524.24,0.00016986,2]
[384523829,1757449871479,-480.0,0.00016986,2]
[384523830,1757449871489,-882.12,0.00016986,2]
[384523831,1757449871499,-822.5,0.00016986,2]
[384523832,1757449871510,-792.79,0.00016986,2]
[384523833,1757449871520,-493.72,0.00016986,2]
[384523834,1757449871530,-650.02,0.00016986,2]
[384523835,1757449871539,-1561.18,0.00016986,2]
[384523836,1757449871550,-2198.51,0.00016986,2]
[384523837,1757449871560,-595.05,0.00016986,2]
[384523838,1757449871570,-1554.96,0.00016986,2]
[384523839,1757449871581,-480.0,0.00016986,2]
[384523840,1757449871591,-480.0,0.00016986,2]
[384523841,1757449871601,-634.32,0.00016986,2]
[384523842,1757449871615,-480.0,0.00016986,2]
[384523843,1757449871625,-646.8,0.00016986,2]
[384523844,1757449871636,-578.16,0.00016986,2]
[384523845,1757449871646,-528.51,0.00016986,2]
[384523846,1757449871657,-1002.17,0.00016986,2]
[384523847,1757449871667,-480.0,0.00016986,2]
[384523848,1757449871682,-500.0,0.00016986,2]
[384523849,1757449871696,-1772.11,0.00016986,2]
[384523850,1757449871706,-371.57367062,0.00016986,2]
[384523851,1757449871716,-1022.54,0.00016986,2]
[384523852,1757449871727,-486.87,0.00016986,2]
[384523853,1757449871737,-480.0,0.00016986,2]
[384523854,1757449871747,-2034.54,0.00016986,2]
[384523855,1757449871757,-480.0,0.00016986,2]
[384523856,1757449871767,-480.0,0.00016986,2]
[384523857,1757449871778,-698.54,0.00016986,2]
[384523858,1757449871788,-811.59,0.00016986,2]
[384523859,1757449871799,-480.0,0.00016986,2]
[384523860,1757449871808,-200.0,0.00017,2]
[384523861,1757449871818,-1500.0,0.00017,2]
[384523862,1757449871828,-1500.0,0.00017,2]
[384523863,1757449871838,-1500.0,0.00017,2]
[384523864,1757449871848,-1500.0,0.00017,2]
[384523865,1757449871858,-1500.0,0.00017,2]
[384523866,1757449871868,-1500.0,0.00017,2]
[384523867,1757449871878,-1437.17,0.00017,2]
[384523868,1757449871888,-6981.30312992,0.00017,2]
[384523869,1757449871898,-10578.81621497,0.00017,7]
[384523870,1757449871908,-250.0,0.00017,2]
[384523871,1757449871918,-250.0,0.00017,2]
[384523872,1757449871927,-250.0,0.00017,2]
[384523873,1757449871938,-250.0,0.00017,2]
[384523874,1757449871947,-255.3,0.00017,2]
[384523875,1757449871957,-203.28455737,0.00017,7]
[384523876,1757449871967,-1000.0,0.00017,2]
[384523877,1757449871978,-417.15472785,0.00017,7]
[384523878,1757449871988,-530.79566296,0.00017,7]
[384523879,1757449871999,-560.0,0.00017001,2]
[384523880,1757449872009,-2000.0,0.00017016,2]
[384523881,1757449872019,-150.0,0.00017065,2]
[384523882,1757449872028,-150.0,0.00017093,2]
[384523883,1757449872038,-150.0,0.00017093,2]
[384523884,1757449872048,-150.0,0.00017093,2]
[384523885,1757449872058,-1219.89,0.00017254,2]
[384523886,1757449872068,-534.0,0.0001726,2]
[384523887,1757449872077,-388.0,0.0001726,2]
[384523888,1757449872088,-480.0,0.0001726,2]
[384523889,1757449872098,-480.0,0.0001726,2]
[384523890,1757449872107,-480.0,0.0001726,2]
[384523891,1757449872117,-625.34,0.0001726,2]
[384523892,1757449872128,-480.0,0.0001726,2]
[384523893,1757449872138,-580.87,0.0001726,2]
[384523894,1757449872148,-594.72,0.0001726,2]
[384523895,1757449872157,-590.08,0.0001726,2]
[384523896,1757449872168,-480.0,0.0001726,2]
[384523897,1757449872178,-798.0,0.0001726,2]
[384523898,1757449872188,-480.0,0.0001726,2]
[384523899,1757449872198,-480.0,0.0001726,2]
[384523900,1757449872208,-510.04,0.0001726,2]
[384523901,1757449872219,-480.0,0.0001726,2]
[384523902,1757449872229,-480.0,0.0001726,2]
[384523903,1757449872238,-480.0,0.0001726,2]
[384523904,1757449872248,-1358.13,0.0001726,2]
[384523905,1757449872258,-7610.56,0.0001726,2]
[384523906,1757449872267,-480.0,0.0001726,2]
[384523907,1757449872278,-616.56,0.0001726,2]
[384523908,1757449872287,-480.0,0.0001726,2]
[384523909,1757449872297,-2162.86,0.0001726,2]
[384523910,1757449872307,-719.29,0.0001726,2]
[384523911,1757449872317,-798.23,0.0001726,2]
[384523912,1757449872327,-480.0,0.0001726,2]
[384523913,1757449872336,-480.0,0.0001726,2]
[384523914,1757449872346,-480.0,0.0001726,2]
[384523915,1757449872355,-409.96248606,0.0001726,2]
[384523916,1757449872364,-1115.6,0.0001726,2]
[384523917,1757449872374,-814.84,0.0001726,2]
[384523918,1757449872383,-4312.41,0.0001726,2]
[384523919,1757449872393,-2540.43,0.0001726,2]
[384523920,1757449872402,-632.5,0.0001726,2]
[384523921,1757449872412,-2246.2,0.0001726,2]
[384523922,1757449872422,-1859.97,0.0001726,2]
[384523923,1757449872432,-1543.27,0.0001726,2]
[384523924,1757449872442,-2024.29,0.0001726,2]
[384523925,1757449872452,-498.41,0.0001726,2]
[384523926,1757449872462,-598.26,0.0001726,2]
[384523927,1757449872472,-575.75,0.0001726,2]
[384523928,1757449872482,-480.0,0.0001726,2]
[384523929,1757449872491,-17569.48,0.0001726,2]
[384523930,1757449872501,-480.0,0.0001726,2]
[384523931,1757449872510,-557.56,0.0001726,2]
[384523932,1757449872520,-524.24,0.0001726,2]
[384523933,1757449872529,-480.0,0.0001726,2]
[384523934,1757449872539,-882.12,0.0001726,2]
[384523935,1757449872548,-822.5,0.0001726,2]
[384523936,1757449872558,-792.79,0.0001726,2]
[384523937,1757449872567,-493.72,0.0001726,2]
[384523938,1757449872577,-650.02,0.0001726,2]
[384523939,1757449872586,-1561.18,0.0001726,2]
[384523940,1757449872596,-2198.51,0.0001726,2]
[384523941,1757449872606,-595.05,0.0001726,2]
[384523942,1757449872615,-1554.96,0.0001726,2]
[384523943,1757449872624,-480.0,0.0001726,2]
[384523944,1757449872634,-480.0,0.0001726,2]
[384523945,1757449872644,-634.32,0.0001726,2]
[384523946,1757449872654,-480.0,0.0001726,2]
[384523947,1757449872663,-646.8,0.0001726,2]
[384523948,1757449872672,-578.16,0.0001726,2]
[384523949,1757449872682,-528.51,0.0001726,2]
[384523950,1757449872692,-1002.17,0.0001726,2]
[384523951,1757449872701,-480.0,0.0001726,2]
[384523952,1757449872711,-379.75904535,0.0001726,2]
[384523953,1757449872722,-1772.11,0.0001726,2]
[384523954,1757449872731,-1022.54,0.0001726,2]
[384523955,1757449872741,-486.87,0.0001726,2]
[384523956,1757449872751,-480.0,0.0001726,2]
[384523957,1757449872761,-2034.54,0.0001726,2]
[384523958,1757449872771,-480.0,0.0001726,2]
[384523959,1757449872781,-480.0,0.0001726,2]
[384523960,1757449872790,-698.54,0.0001726,2]
[384523961,1757449872800,-480.0,0.0001726,2]
[384523962,1757449872810,-811.59,0.0001726,2]
[384523963,1757449872820,-1501.31026364,0.0001726,2]
[384523964,1757449872830,-3500.0,0.0001726,2]
[384523965,1757449872839,-250.0,0.000173,2]
[384523966,1757449872849,-976.0,0.00017349,2]
[384523967,1757449872858,-634.0,0.00017349,2]
[384523968,1757449872868,-2154.0,0.00017349,2]
[384523969,1757449872877,-160.0,0.00017417,7]
[384523970,1757449872887,-262.60874319,0.00017455,7]
[384523971,1757449872896,-262.60874319,0.00017463,7]
[384523972,1757449872905,-1000.0,0.000175,2]
[384523973,1757449872915,-1219.89,0.00017528,2]
[384523974,1757449872925,-534.0,0.00017534,2]
[384523975,1757449872934,-240.4185378,0.00017534,2]
[384523976,1757449872944,-480.0,0.00017534,2]
[384523977,1757449872953,-480.0,0.00017534,2]
[384523978,1757449872962,-625.34,0.00017534,2]
[384523979,1757449873070,-480.0,0.00017534,2]
[384523980,1757449873081,-580.87,0.00017534,2]
[384523981,1757449873090,-594.72,0.00017534,2]
[384523982,1757449873100,-590.08,0.00017534,2]
[384523983,1757449873110,-480.0,0.00017534,2]
[384523984,1757449873119,-798.0,0.00017534,2]
[384523985,1757449873128,-480.0,0.00017534,2]
[384523986,1757449873138,-480.0,0.00017534,2]
[384523987,1757449873148,-510.04,0.00017534,2]
[384523988,1757449873157,-480.0,0.00017534,2]
[384523989,1757449873167,-480.0,0.00017534,2]
[384523990,1757449873177,-480.0,0.00017534,2]
[384523991,1757449873187,-1358.13,0.00017534,2]
[384523992,1757449873196,-7610.56,0.00017534,2]
[384523993,1757449873206,-480.0,0.00017534,2]
[384523994,1757449873215,-616.56,0.00017534,2]
[384523995,1757449873225,-480.0,0.00017534,2]
[384523996,1757449873234,-2162.86,0.00017534,2]
[384523997,1757449873243,-719.29,0.00017534,2]
[384523998,1757449873253,-798.23,0.00017534,2]
[384523999,1757449873262,-480.0,0.00017534,2]
[384524000,1757449873272,-480.0,0.00017534,2]
[384524001,1757449873281,-480.0,0.00017534,2]
[384524002,1757449873291,-1115.6,0.00017534,2]
[384524003,1757449873300,-814.84,0.00017534,2]
[384524004,1757449873310,-4312.41,0.00017534,2]
[384524005,1757449873320,-2540.43,0.00017534,2]
[384524006,1757449873329,-632.5,0.00017534,2]
[384524007,1757449873339,-2246.2,0.00017534,2]
[384524008,1757449873349,-1859.97,0.00017534,2]
[384524009,1757449873358,-1543.27,0.00017534,2]
[384524010,1757449873368,-2024.29,0.00017534,2]
[384524011,1757449873378,-498.41,0.00017534,2]
[384524012,1757449873387,-598.26,0.00017534,2]
[384524013,1757449873397,-575.75,0.00017534,2]
[384524014,1757449873406,-480.0,0.00017534,2]
[384524015,1757449873416,-17569.48,0.00017534,2]
[384524016,1757449873425,-480.0,0.00017534,2]
[384524017,1757449873435,-557.56,0.00017534,2]
[384524018,1757449873444,-524.24,0.00017534,2]
[384524019,1757449873454,-480.0,0.00017534,2]
[384524020,1757449873464,-882.12,0.00017534,2]
[384524021,1757449873473,-822.5,0.00017534,2]
[384524022,1757449873482,-792.79,0.00017534,2]
[384524023,1757449873492,-493.72,0.00017534,2]
[384524024,1757449873501,-650.02,0.00017534,2]
[384524025,1757449873510,-1561.18,0.00017534,2]
[384524026,1757449873519,-2198.51,0.00017534,2]
[384524027,1757449873529,-595.05,0.00017534,2]
[384524028,1757449873539,-1554.96,0.00017534,2]
[384524029,1757449873548,-480.0,0.00017534,2]
[384524030,1757449873557,-480.0,0.00017534,2]
[384524031,1757449873567,-634.32,0.00017534,2]
[384524032,1757449873577,-480.0,0.00017534,2]
[384524033,1757449873587,-646.8,0.00017534,2]
[384524034,1757449873596,-578.16,0.00017534,2]
[384524035,1757449873608,-528.51,0.00017534,2]
[384524036,1757449873618,-1002.17,0.00017534,2]
[384524037,1757449873628,-480.0,0.00017534,2]
[384524038,1757449873638,-1772.11,0.00017534,2]
[384524039,1757449873647,-1022.54,0.00017534,2]
[384524040,1757449873659,-486.87,0.00017534,2]
[384524041,1757449873668,-480.0,0.00017534,2]
[384524042,1757449873678,-2034.54,0.00017534,2]
[384524043,1757449873687,-480.0,0.00017534,2]
[384524044,1757449873699,-480.0,0.00017534,2]
[384524045,1757449873709,-698.54,0.00017534,2]
[384524046,1757449873719,-480.0,0.00017534,2]
[384524047,1757449873728,-811.59,0.00017534,2]
[384524048,1757449873738,-660.0,0.00017549,2]
[384524049,1757449873747,-2067.94023772,0.00017564,2]
[384524050,1757449873756,-136389.63578413,0.000176,27]
[384524051,1757449873766,-500.0,0.00017659,2]
[384524052,1757449873776,-262.60874319,0.00017737,7]
[384524053,1757449873786,-1219.89,0.00017802,2]
[384524054,1757449873795,-11426.30648404,0.00017806,2]
[384524055,1757449873805,-534.0,0.00017808,2]
[384524056,1757449873815,-480.0,0.00017808,2]
[384524057,1757449873824,-480.0,0.00017808,2]
[384524058,1757449873833,-625.34,0.00017808,2]
[384524059,1757449873843,-480.0,0.00017808,2]
[384524060,1757449873853,-580.87,0.00017808,2]
[384524061,1757449873863,-594.72,0.00017808,2]
[384524062,1757449873871,-590.08,0.00017808,2]
[384524063,1757449873881,-480.0,0.00017808,2]
[384524064,1757449873891,-798.0,0.00017808,2]
[384524065,1757449873899,-480.0,0.00017808,2]
[384524066,1757449873909,-480.0,0.00017808,2]
[384524067,1757449873919,-510.04,0.00017808,2]
[384524068,1757449873928,-480.0,0.00017808,2]
[384524069,1757449873938,-480.0,0.00017808,2]
[384524070,1757449873947,-539.86011723,0.00017808,2]
[384524071,1757449873957,-1358.13,0.00017808,2]
[384524072,1757449873966,-7610.56,0.00017808,2]
[384524073,1757449873976,-480.0,0.00017808,2]
[384524074,1757449873985,-616.56,0.00017808,2]
[384524075,1757449873994,-480.0,0.00017808,2]
[384524076,1757449874003,-2162.86,0.00017808,2]
[384524077,1757449874013,-719.29,0.00017808,2]
[384524078,1757449874023,-798.23,0.00017808,2]
[384524079,1757449874032,-480.0,0.00017808,2]
[384524080,1757449874042,-480.0,0.00017808,2]
[384524081,1757449874051,-480.0,0.00017808,2]
[384524082,1757449874061,-1115.6,0.00017808,2]
[384524083,1757449874070,-814.84,0.00017808,2]
[384524084,1757449874079,-4312.41,0.00017808,2]
[384524085,1757449874089,-2540.43,0.00017808,2]
[384524086,1757449874098,-632.5,0.00017808,2]
[384524087,1757449874107,-2246.2,0.00017808,2]
[384524088,1757449874117,-1859.97,0.00017808,2]
[384524089,1757449874127,-1543.27,0.00017808,2]
[384524090,1757449874137,-2024.29,0.00017808,2]
[384524091,1757449874146,-498.41,0.00017808,2]
[384524092,1757449874156,-598.26,0.00017808,2]
[384524093,1757449874166,-575.75,0.00017808,2]
[384524094,1757449874175,-480.0,0.00017808,2]
[384524095,1757449874186,-17569.48,0.00017808,2]
[384524096,1757449874195,-480.0,0.00017808,2]
[384524097,1757449874205,-557.56,0.00017808,2]
[384524098,1757449874214,-524.24,0.00017808,2]
[384524099,1757449874224,-480.0,0.00017808,2]
[384524100,1757449874234,-882.12,0.00017808,2]
[384524101,1757449874243,-822.5,0.00017808,2]
[384524102,1757449874253,-792.79,0.00017808,2]
[384524103,1757449874262,-493.72,0.00017808,2]
[384524104,1757449874271,-650.02,0.00017808,2]
[384524105,1757449874281,-1561.18,0.00017808,2]
[384524106,1757449874290,-2198.51,0.00017808,2]
[384524107,1757449874300,-595.05,0.00017808,2]
[384524108,1757449874310,-1554.96,0.00017808,2]
[384524109,1757449874319,-480.0,0.00017808,2]
[384524110,1757449874329,-480.0,0.00017808,2]
[384524111,1757449874339,-634.32,0.00017808,2]
[384524112,1757449874349,-565.82800725,0.00017808,2]
[384524113,1757449874358,-646.8,0.00017808,2]
[384524114,1757449874368,-578.16,0.00017808,2]
[384524115,1757449874377,-528.51,0.00017808,2]
[384524116,1757449874387,-1002.17,0.00017808,2]
[384524117,1757449874396,-480.0,0.00017808,2]
[384524118,1757449874406,-1772.11,0.00017808,2]
[384524119,1757449874416,-1022.54,0.00017808,2]
[384524120,1757449874425,-486.87,0.00017808,2]
[384524121,1757449874435,-622.68619208,0.00017808,2]
[384524122,1757449874445,-2034.54,0.00017808,2]
[384524123,1757449874455,-480.0,0.00017808,2]
[384524124,1757449874466,-480.0,0.00017808,2]
[384524125,1757449874476,-698.54,0.00017808,2]
[384524126,1757449874485,-811.59,0.00017808,2]
[384524127,1757449874495,-474.98014133,0.00017808,2]
[384524128,1757449874504,-4000.0,0.00017808,2]
[384524129,1757449874514,-244.46821514,0.00017842,2]
[384524130,1757449874523,-3000.0,0.00017876,2]
[384524131,1757449874533,-785.12442879,0.000179,3]
[384524132,1757449874542,-160.0,0.00017944,8]
[384524133,1757449874552,-765.0,0.00018,2]
[384524134,1757449874561,-1000.0,0.00018,2]
[384524135,1757449874570,-1000.0,0.00018,2]
[384524136,1757449874580,-1000.0,0.00018,2]
[384524137,1757449874589,-1000.0,0.00018,2]
[384524138,1757449874598,-1000.0,0.00018,2]
[384524139,1757449874607,-1000.0,0.00018,2]
[384524140,1757449874616,-1000.0,0.00018,2]
[384524141,1757449874626,-1000.0,0.00018,2]
[384524142,1757449874635,-1000.0,0.00018,2]
[384524143,1757449874645,-1000.0,0.00018,2]
[384524144,1757449874654,-500.0,0.0001807,2]
[384524145,1757449874663,-1219.89,0.00018076,2]
[384524146,1757449874673,-534.0,0.00018082,2]
[384524147,1757449874682,-480.0,0.00018082,2]
[384524148,1757449874691,-480.0,0.00018082,2]
[384524149,1757449874701,-625.34,0.00018082,2]
[384524150,1757449874710,-480.0,0.00018082,2]
[384524151,1757449874719,-436.87603845,0.00018082,2]
[384524152,1757449875007,-143.99396155,0.00018082,2]
[384524153,1757449875017,-594.72,0.00018082,2]
[384524154,1757449875026,-11.14987835,0.00018082,2]
[384524155,1757449875044,-323.728078,0.00013698,2]
[384524156,1757449875053,-578.93012165,0.00018082,2]
[384524157,1757449875063,-312.02156796,0.00018082,2]
[384524158,1757449875083,-3020.48,0.00016712,2]
[384524159,1757449875092,-167.97843204,0.00018082,2]
[384524160,1757449875102,-798.0,0.00018082,2]
[384524161,1757449875111,-480.0,0.00018082,2]
[384524162,1757449875121,-480.0,0.00018082,2]
[384524163,1757449875130,-510.04,0.00018082,2]
[384524164,1757449875139,-480.0,0.00018082,2]
[384524165,1757449875150,-480.0,0.00018082,2]
[384524166,1757449875160,-1358.13,0.00018082,2]
[384524167,1757449875170,-7610.56,0.00018082,2]